lending/lending_fUSD_20250224
["ID","MTS","AMOUNT","RATE_DAILY","PERIOD"]
[354235911,1740357055505,-270.22919971,0.00016602,2]
[354235912,1740357055514,-13.17128044,0.00016602,2]
[354235913,1740357055529,-486.82871956,0.00016602,2]
[354235914,1740357055538,-705.18,0.00016602,2]
[354235915,1740357055548,-535.94,0.00016602,2]
[354235916,1740357055557,-500.0,0.00016602,2]
[354235917,1740357055567,-632.59,0.00016602,2]
[354235918,1740357055576,-304.76128044,0.00016602,2]
[354235919,1740357055587,-704.67871956,0.00016602,2]
[354235920,1740357055654,-500.0,0.00016602,2]
[354235921,1740357055664,-500.0,0.00016602,2]
[354235922,1740357055673,-6.26371644,0.00016602,2]
[354235923,1740357055685,-493.73628356,0.00016602,2]
[354235924,1740357055694,-642.50208484,0.00016602,2]
[354235925,1740357055705,-6.64791516,0.00016602,2]
[354235926,1740357055714,-500.0,0.00016602,2]
[354235927,1740357055724,-500.0,0.00016602,2]
[354235928,1740357055732,-172.67708484,0.00016602,2]
[354235929,1740357055743,-431.89291516,0.00016602,2]
[354235930,1740357055753,-277.40145719,0.00016602,2]
[354235931,1740357055762,-202.62484422,0.00016602,2]
[354235932,1740357055784,-925.16515578,0.00016602,2]
[354235933,1740357055793,-500.0,0.00016602,2]
[354235934,1740357055802,-500.0,0.00016602,2]
[354235935,1740357055810,-437.09357771,0.00016602,2]
[354235936,1740357055822,-62.90642229,0.00016602,2]
[354235937,1740357055830,-500.0,0.00016602,2]
[354235938,1740357055839,-500.0,0.00016602,2]
[354235939,1740357055848,-500.0,0.00016602,2]
[354235940,1740357055857,-3548.977,0.00016602,2]
[354235941,1740357055866,-187.94,0.00016602,2]
[354235942,1740357055875,-500.0,0.00016602,2]
[354235943,1740357055885,-500.0,0.00016602,2]
[354235944,1740357055895,-500.0,0.00016602,2]
[354235945,1740357055905,-257.68222718,0.00016602,2]
[354235946,1740357055914,-500.0,0.00016602,2]
[354235947,1740357055924,-500.0,0.00016602,2]
[354235948,1740357055933,-500.0,0.00016602,2]
[354235949,1740357055942,-500.0,0.00016602,2]
[354235950,1740357055951,-500.0,0.00016602,2]
[354235951,1740357055960,-500.0,0.00016602,2]
[354235952,1740357055969,-500.0,0.00016602,2]
[354235953,1740357055978,-500.0,0.00016602,2]
[354235954,1740357055987,-500.0,0.00016602,2]
[354235955,1740357055996,-500.0,0.00016602,2]
[354235956,1740357056006,-500.0,0.00016602,2]
[354235957,1740357056015,-500.0,0.00016602,2]
[354235958,1740357056024,-617.35982,0.00016602,2]
[354235959,1740357056033,-500.0,0.00016602,2]
[354235960,1740357056042,-500.0,0.00016602,2]
[354235961,1740357056051,-500.0,0.00016602,2]
[354235962,1740357056060,-500.0,0.00016602,2]
[354235963,1740357056069,-594.55,0.00016602,2]
[354235964,1740357056079,-500.0,0.00016602,2]
[354235965,1740357056088,-500.0,0.00016602,2]
[354235966,1740357056097,-500.0,0.00016602,2]
[354235967,1740357056106,-511.15,0.00016602,2]
[354235968,1740357056114,-500.0,0.00016602,2]
[354235969,1740357056122,-529.85,0.00016602,2]
[354235970,1740357056131,-500.0,0.00016602,2]
[354235971,1740357056140,-105.95451142,0.00016602,2]
[354235972,1740357056153,-412.74034463,0.00016602,2]
[354235973,1740357056162,-500.0,0.00016602,2]
[354235974,1740357056173,-500.0,0.00016602,2]
[354235975,1740357056182,-93.03417145,0.00016602,2]
[354235976,1740357056193,-406.96582855,0.00016602,2]
[354235977,1740357056202,-500.0,0.00016602,2]
[354235978,1740357056211,-118.90796246,0.00016602,2]
[354235979,1740357056222,-379.9422459,0.00016602,2]
[354235980,1740357056233,-1.14979164,0.00016602,2]
[354235981,1740357056242,-500.0,0.00016602,2]
[354235982,1740357056250,-327.46,0.00016602,2]
[354235983,1740357056260,-500.0,0.00016602,2]
[354235984,1740357056269,-1128.75,0.00016602,2]
[354235985,1740357056278,-369.48785422,0.00016602,2]
[354235986,1740357056289,-500.0,0.00016602,2]
[354235987,1740357056301,-1348.29214578,0.00016602,2]
[354235988,1740357056309,-500.0,0.00016602,2]
[354235989,1740357056318,-271.06785423,0.00016602,2]
[354235990,1740357056340,-228.93214577,0.00016602,2]
[354235991,1740357056350,-500.0,0.00016602,2]
[354235992,1740357056359,-500.0,0.00016602,2]
[354235993,1740357056368,-781.49998792,0.00016602,2]
[354235994,1740357056857,-500.0,0.00016438,2]
[354235995,1740357056866,-1035.45001208,0.00016602,2]
[354235996,1740357056875,-985.08,0.00016602,2]
[354235997,1740357056884,-933.31,0.00016602,2]
[354235998,1740357056893,-500.0,0.00016602,2]
[354235999,1740357056902,-500.0,0.00016602,2]
[354236000,1740357056911,-500.0,0.00016602,2]
[354236001,1740357056920,-1037.3,0.00016602,2]
[354236002,1740357056930,-500.0,0.00016602,2]
[354236003,1740357056939,-500.0,0.00016602,2]
[354236004,1740357056948,-530.9,0.00016602,2]
[354236005,1740357056958,-201.15488792,0.00016602,2]
[354236006,1740357057066,-716.92511208,0.00016602,2]
[354236007,1740357057075,-500.0,0.00016602,2]
[354236008,1740357057085,-500.0,0.00016602,2]
[354236009,1740357057094,-500.0,0.00016602,2]
[354236010,1740357057102,-844.57,0.00016602,2]
[354236011,1740357057111,-500.0,0.00016602,2]
[354236012,1740357057120,-500.0,0.00016602,2]
[354236013,1740357057129,-500.0,0.00016602,2]
[354236014,1740357057138,-736.64,0.00016602,2]
[354236015,1740357057147,-889.93,0.00016602,2]
[354236016,1740357057156,-500.0,0.00016602,2]
[354236017,1740357057165,-500.0,0.00016602,2]
[354236018,1740357057174,-741.58,0.00016602,2]
[354236019,1740357057183,-500.0,0.00016602,2]
[354236020,1740357057192,-500.0,0.00016602,2]
[354236021,1740357057201,-500.0,0.00016602,2]
[354236022,1740357057210,-706.45,0.00016602,2]
[354236023,1740357057219,-1635.1,0.00016602,2]
[354236024,1740357057229,-1136.01,0.00016602,2]
[354236025,1740357057238,-680.4,0.00016602,2]
[354236026,1740357057248,-544.75,0.00016602,2]
[354236027,1740357057257,-636.87,0.00016602,2]
[354236028,1740357057266,-716.28,0.00016602,2]
[354236029,1740357057275,-500.0,0.00016602,2]
[354236030,1740357057284,-500.0,0.00016602,2]
[354236031,1740357057297,-647.69,0.00016602,2]
[354236032,1740357057306,-1116.09,0.00016602,2]
[354236033,1740357057315,-1000.0,0.00016602,2]
[354236034,1740357057325,-625.51,0.00016602,2]
[354236035,1740357057334,-796.64,0.00016602,2]
[354236036,1740357057343,-566.86,0.00016602,2]
[354236037,1740357057352,-500.0,0.00016602,2]
[354236038,1740357057361,-500.0,0.00016602,2]
[354236039,1740357057370,-1041.45,0.00016602,2]
[354236040,1740357057383,-506.83,0.00016602,2]
[354236041,1740357057392,-748.16,0.00016602,2]
[354236042,1740357057402,-509.33,0.00016602,2]
[354236043,1740357057411,-500.0,0.00016602,2]
[354236044,1740357057420,-1017.97,0.00016602,2]
[354236045,1740357057431,-500.0,0.00016602,2]
[354236046,1740357057440,-151.0,0.00016602,2]
[354236047,1740357057449,-649.47,0.00016602,2]
[354236048,1740357057460,-1101.66,0.00016602,2]
[354236049,1740357057470,-500.0,0.00016602,2]
[354236050,1740357057479,-500.0,0.00016602,2]
[354236051,1740357057488,-500.0,0.00016602,2]
[354236052,1740357057497,-500.0,0.00016602,2]
[354236053,1740357057506,-500.0,0.00016602,2]
[354236054,1740357057515,-151.0,0.00016602,2]
[354236055,1740357057524,-532.98,0.00016602,2]
[354236056,1740357057533,-734.46,0.00016602,2]
[354236057,1740357057542,-584.9,0.00016602,2]
[354236058,1740357057551,-500.0,0.00016602,2]
[354236059,1740357057560,-151.0,0.00016602,2]
[354236060,1740357057569,-500.0,0.00016602,2]
[354236061,1740357057578,-500.0,0.00016602,2]
[354236062,1740357057587,-1097.06,0.00016602,2]
[354236063,1740357057596,-1254.0,0.00016602,2]
[354236064,1740357057606,-500.0,0.00016602,2]
[354236065,1740357057615,-500.0,0.00016602,2]
[354236066,1740357057623,-717.94,0.00016602,2]
[354236067,1740357057632,-500.0,0.00016602,2]
[354236068,1740357057641,-657.94,0.00016602,2]
[354236069,1740357057650,-151.0,0.00016602,2]
[354236070,1740357057659,-860.79,0.00016602,2]
[354236071,1740357057668,-500.0,0.00016602,2]
[354236072,1740357057677,-582.78,0.00016602,2]
[354236073,1740357057687,-500.0,0.00016602,2]
[354236074,1740357057696,-1231.34,0.00016602,2]
[354236075,1740357057705,-500.0,0.00016602,2]
[354236076,1740357057714,-500.0,0.00016602,2]
[354236077,1740357057723,-1132.71,0.00016602,2]
[354236078,1740357057732,-608.67,0.00016602,2]
[354236079,1740357057742,-683.96,0.00016602,2]
[354236080,1740357057751,-546.22,0.00016602,2]
[354236081,1740357057760,-1323.83,0.00016602,2]
[354236082,1740357057769,-1029.7,0.00016602,2]
[354236083,1740357057778,-768.98,0.00016602,2]
[354236084,1740357057787,-511.25,0.00016602,2]
[354236085,1740357057796,-500.0,0.00016602,2]
[354236086,1740357057804,-637.46,0.00016602,2]
[354236087,1740357057813,-736.52,0.00016602,2]
[354236088,1740357057822,-1221.17,0.00016602,2]
[354236089,1740357057831,-500.0,0.00016602,2]
[354236090,1740357057840,-500.0,0.00016602,2]
[354236091,1740357057849,-721.71,0.00016602,2]
[354236092,1740357057858,-530.74,0.00016602,2]
[354236093,1740357057867,-590.94186514,0.00016602,2]
[354236094,1740357057876,-969.32,0.00016602,2]
[354236095,1740357057886,-500.0,0.00016602,2]
[354236096,1740357057894,-500.0,0.00016602,2]
[354236097,1740357057903,-581.96,0.00016602,2]
[354236098,1740357057912,-500.0,0.00016602,2]
[354236099,1740357057922,-500.0,0.00016602,2]
[354236100,1740357057931,-1688.26,0.00016602,2]
[354236101,1740357057940,-151.0,0.00016602,2]
[354236102,1740357057949,-608.12,0.00016602,2]
[354236103,1740357057958,-151.0,0.00016602,2]
[354236104,1740357057967,-500.0,0.00016602,2]
[354236105,1740357057977,-500.0,0.00016602,2]
[354236106,1740357057986,-755.92,0.00016602,2]
[354236107,1740357057995,-731.87,0.00016602,2]
[354236108,1740357058005,-610.03,0.00016602,2]
[354236109,1740357058014,-500.0,0.00016602,2]
[354236110,1740357058023,-516.75,0.00016602,2]
[354236111,1740357058033,-588.53,0.00016602,2]
[354236112,1740357058042,-892.38,0.00016602,2]
[354236113,1740357058051,-500.0,0.00016602,2]
[354236114,1740357058061,-500.0,0.00016602,2]
[354236115,1740357058070,-500.0,0.00016602,2]
[354236116,1740357058079,-500.0,0.00016602,2]
[354236117,1740357058088,-500.0,0.00016602,2]
[354236118,1740357058097,-500.0,0.00016602,2]
[354236119,1740357058106,-525.63,0.00016602,2]
[354236120,1740357058115,-500.0,0.00016602,2]
[354236121,1740357058125,-718.45,0.00016602,2]
[354236122,1740357058134,-500.0,0.00016602,2]
[354236123,1740357058144,-1360.92,0.00016602,2]
[354236124,1740357058153,-1108.96,0.00016602,2]
[354236125,1740357058162,-500.0,0.00016602,2]
[354236126,1740357058171,-500.0,0.00016602,2]
[354236127,1740357058181,-500.0,0.00016602,2]
[354236128,1740357058190,-1321.6,0.00016602,2]
[354236129,1740357058199,-511.81,0.00016602,2]
[354236130,1740357058209,-500.0,0.00016602,2]
[354236131,1740357058219,-500.0,0.00016602,2]
[354236132,1740357058228,-691.9,0.00016602,2]
[354236133,1740357058238,-500.0,0.00016602,2]
[354236134,1740357058247,-500.0,0.00016602,2]
[354236135,1740357058256,-855.06,0.00016602,2]
[354236136,1740357058266,-643.72,0.00016602,2]
[354236137,1740357058275,-1162.85,0.00016602,2]
[354236138,1740357058284,-500.0,0.00016602,2]
[354236139,1740357058293,-500.0,0.00016602,2]
[354236140,1740357058302,-500.0,0.00016602,2]
[354236141,1740357058311,-1251.58,0.00016602,2]
[354236142,1740357058321,-606.52,0.00016602,2]
[354236143,1740357058330,-645.36,0.00016602,2]
[354236144,1740357058339,-512.26,0.00016602,2]
[354236145,1740357058349,-539.63,0.00016602,2]
[354236146,1740357058358,-742.91,0.00016602,2]
[354236147,1740357058368,-637.84,0.00016602,2]
[354236148,1740357058379,-500.0,0.00016602,2]
[354236149,1740357058389,-1221.29,0.00016602,2]
[354236150,1740357058399,-788.08,0.00016602,2]
[354236151,1740357058409,-500.0,0.00016602,2]
[354236152,1740357058419,-500.0,0.00016602,2]
[354236153,1740357058429,-500.0,0.00016602,2]
[354236154,1740357058439,-622.59,0.00016602,2]
[354236155,1740357058448,-1072.67,0.00016602,2]
[354236156,1740357058459,-500.0,0.00016602,2]
[354236157,1740357058470,-500.0,0.00016602,2]
[354236158,1740357058479,-500.0,0.00016602,2]
[354236159,1740357058489,-500.0,0.00016602,2]
[354236160,1740357058498,-627.52,0.00016602,2]
[354236161,1740357058507,-500.0,0.00016602,2]
[354236162,1740357058516,-500.0,0.00016602,2]
[354236163,1740357058524,-883.71,0.00016602,2]
[354236164,1740357058533,-574.66,0.00016602,2]
[354236165,1740357058542,-500.0,0.00016602,2]
[354236166,1740357058551,-500.0,0.00016602,2]
[354236167,1740357058560,-500.0,0.00016602,2]
[354236168,1740357058569,-500.0,0.00016602,2]
[354236169,1740357058577,-625.77,0.00016602,2]
[354236170,1740357058587,-500.0,0.00016602,2]
[354236171,1740357058596,-500.0,0.00016602,2]
[354236172,1740357058605,-1084.69,0.00016602,2]
[354236173,1740357058614,-500.0,0.00016602,2]
[354236174,1740357058623,-1101.63,0.00016602,2]
[354236175,1740357058632,-1419.67,0.00016602,2]
[354236176,1740357058641,-500.0,0.00016602,2]
[354236177,1740357058650,-500.0,0.00016602,2]
[354236178,1740357058659,-151.0,0.00016602,2]
[354236179,1740357058668,-500.0,0.00016602,2]
[354236180,1740357058677,-500.0,0.00016602,2]
[354236181,1740357058687,-500.0,0.00016602,2]
[354236182,1740357058697,-500.0,0.00016602,2]
[354236183,1740357058706,-500.0,0.00016602,2]
[354236184,1740357058715,-500.0,0.00016602,2]
[354236185,1740357058724,-1009.55,0.00016602,2]
[354236186,1740357058734,-500.0,0.00016602,2]
[354236187,1740357058744,-500.0,0.00016602,2]
[354236188,1740357058753,-500.0,0.00016602,2]
[354236189,1740357058763,-757.17,0.00016602,2]
[354236190,1740357058772,-573.09,0.00016602,2]
[354236191,1740357058782,-1659.38,0.00016602,2]
[354236192,1740357058799,-500.0,0.00016602,2]
[354236193,1740357058822,-500.0,0.00016602,2]
[354236194,1740357058833,-500.0,0.00016602,2]
[354236195,1740357058842,-1467.75,0.00016602,2]
[354236196,1740357058850,-1423.64,0.00016602,2]
[354236197,1740357058859,-1030.39,0.00016602,2]
[354236198,1740357058868,-500.0,0.00016602,2]
[354236199,1740357058878,-500.0,0.00016602,2]
[354236200,1740357058887,-3158.06,0.00016602,2]
[354236201,1740357058897,-1272.06,0.00016602,2]
[354236202,1740357058906,-962.53,0.00016602,2]
[354236203,1740357058916,-841.08,0.00016602,2]
[354236204,1740357058925,-500.0,0.00016602,2]
[354236205,1740357058934,-604.35,0.00016602,2]
[354236206,1740357058943,-871.71,0.00016602,2]
[354236207,1740357058952,-531.69875624,0.00016602,2]
[354236208,1740357058961,-500.0,0.00016602,2]
[354236209,1740357058971,-500.0,0.00016602,2]
[354236210,1740357058980,-706.88,0.00016602,2]
[354236211,1740357058989,-1536.14,0.00016602,2]
[354236212,1740357058997,-725.29,0.00016602,2]
[354236213,1740357059006,-500.0,0.00016602,2]
[354236214,1740357059015,-1961.6,0.00016602,2]
[354236215,1740357059025,-676.71,0.00016602,2]
[354236216,1740357059034,-500.0,0.00016602,2]
[354236217,1740357059043,-169.585393,0.00016602,2]
[354236218,1740357059052,-500.0,0.00016602,2]
[354236219,1740357059061,-6195.4,0.00016602,2]
[354236220,1740357059070,-169.585393,0.00016602,2]
[354236221,1740357059079,-569.97,0.00016602,2]
[354236222,1740357059088,-636.53,0.00016602,2]
[354236223,1740357059096,-1687.0,0.00016602,2]
[354236224,1740357059105,-656.04,0.00016602,2]
[354236225,1740357059114,-500.0,0.00016602,2]
[354236226,1740357059124,-903.05,0.00016602,2]
[354236227,1740357059132,-568.63,0.00016602,2]
[354236228,1740357059141,-3068.6,0.00016602,2]
[354236229,1740357059151,-3003.95,0.00016602,2]
[354236230,1740357059161,-500.0,0.00016602,2]
[354236231,1740357059170,-1875.22,0.00016602,2]
[354236232,1740357059179,-1523.1,0.00016602,2]
[354236233,1740357059190,-1410.59,0.00016602,2]
[354236234,1740357059199,-500.0,0.00016602,2]
[354236235,1740357059209,-678.58,0.00016602,2]
[354236236,1740357059218,-1082.42,0.00016602,2]
[354236237,1740357059227,-2383.4,0.00016602,2]
[354236238,1740357059237,-1221.49,0.00016602,2]
[354236239,1740357059246,-3515.61,0.00016602,2]
[354236240,1740357059256,-500.0,0.00016602,2]
[354236241,1740357059265,-2672.99,0.00016602,2]
[354236242,1740357059274,-500.0,0.00016602,2]
[354236243,1740357059283,-2794.68,0.00016602,2]
[354236244,1740357059293,-976.85,0.00016602,2]
[354236245,1740357059302,-1350.66,0.00016602,2]
[354236246,1740357059311,-2107.75,0.00016602,2]
[354236247,1740357059322,-1098.37,0.00016602,2]
[354236248,1740357059332,-1372.17,0.00016602,2]
[354236249,1740357059341,-500.0,0.00016602,2]
[354236250,1740357059350,-1429.11,0.00016602,2]
[354236251,1740357059359,-1176.98,0.00016602,2]
[354236252,1740357059369,-2325.34,0.00016602,2]
[354236253,1740357059381,-500.0,0.00016602,2]
[354236254,1740357059391,-5590.95,0.00016602,2]
[354236255,1740357059402,-3703.2,0.00016602,2]
[354236256,1740357059412,-3072.67,0.00016602,2]
[354236257,1740357059421,-500.0,0.00016602,2]
[354236258,1740357059436,-1267.19,0.00016602,2]
[354236259,1740357059446,-1049.43,0.00016602,2]
[354236260,1740357059455,-706.62,0.00016602,2]
[354236261,1740357059464,-2201.1,0.00016602,2]
[354236262,1740357059472,-2367.84,0.00016602,2]
[354236263,1740357059481,-151.0,0.00016602,2]
[354236264,1740357059491,-1405.9,0.00016602,2]
[354236265,1740357059501,-1284.89,0.00016602,2]
[354236266,1740357059510,-500.0,0.00016602,2]
[354236267,1740357059519,-629.59,0.00016602,2]
[354236268,1740357059633,-2013.91,0.00016602,2]
[354236269,1740357059644,-2433.22,0.00016602,2]
[354236270,1740357059652,-823.99,0.00016602,2]
[354236271,1740357059661,-617.66,0.00016602,2]
[354236272,1740357059670,-907.79,0.00016602,2]
[354236273,1740357059681,-519.86,0.00016602,2]
[354236274,1740357059691,-1780.97,0.00016602,2]
[354236275,1740357059701,-1043.23,0.00016602,2]
[354236276,1740357059710,-2863.64,0.00016602,2]
[354236277,1740357059720,-500.0,0.00016602,2]
[354236278,1740357059729,-1026.09,0.00016602,2]
[354236279,1740357059738,-1980.67,0.00016602,2]
[354236280,1740357059747,-500.0,0.00016602,2]
[354236281,1740357059756,-886.58,0.00016602,2]
[354236282,1740357059766,-500.0,0.00016602,2]
[354236283,1740357059775,-1729.51,0.00016602,2]
[354236284,1740357059784,-2281.62,0.00016602,2]
[354236285,1740357059793,-151.0,0.00016602,2]
[354236286,1740357059802,-1767.88,0.00016602,2]
[354236287,1740357059811,-6050.85,0.00016602,2]
[354236288,1740357059822,-624.19,0.00016602,2]
[354236289,1740357059831,-1219.38,0.00016602,2]
[354236290,1740357059840,-620.93,0.00016602,2]
[354236291,1740357059850,-721.86,0.00016602,2]
[354236292,1740357059859,-1301.43,0.00016602,2]
[354236293,1740357059870,-1202.34,0.00016602,2]
[354236294,1740357059879,-2165.1,0.00016602,2]
[354236295,1740357059888,-1979.84,0.00016602,2]
[354236296,1740357059897,-2498.73,0.00016602,2]
[354236297,1740357059907,-500.0,0.00016602,2]
[354236298,1740357059916,-500.0,0.00016602,2]
[354236299,1740357059926,-1953.78,0.00016602,2]
[354236300,1740357059935,-511.98,0.00016602,2]
[354236301,1740357059944,-1243.09,0.00016602,2]
[354236302,1740357059954,-758.54,0.00016602,2]
[354236303,1740357059964,-2183.27,0.00016602,2]
[354236304,1740357059973,-1657.59,0.00016602,2]
[354236305,1740357059983,-1799.21,0.00016602,2]
[354236306,1740357059993,-2567.08,0.00016602,2]
[354236307,1740357060002,-611.25,0.00016602,2]
[354236308,1740357060011,-1658.1,0.00016602,2]
[354236309,1740357060021,-500.0,0.00016602,2]
[354236310,1740357060031,-2917.38,0.00016602,2]
[354236311,1740357060040,-151.0,0.00016602,2]
[354236312,1740357060050,-827.53,0.00016602,2]
[354236313,1740357060060,-3082.71,0.00016602,2]
[354236314,1740357060070,-151.0,0.00016602,2]
[354236315,1740357060084,-3006.17,0.00016602,2]
[354236316,1740357060097,-500.0,0.00016602,2]
[354236317,1740357060107,-1544.11,0.00016602,2]
[354236318,1740357060116,-1701.43,0.00016602,2]
[354236319,1740357060125,-717.6,0.00016602,2]
[354236320,1740357060134,-2497.33,0.00016602,2]
[354236321,1740357060143,-1142.82,0.00016602,2]
[354236322,1740357060153,-2434.29,0.00016602,2]
[354236323,1740357060162,-982.18,0.00016602,2]
[354236324,1740357060171,-500.0,0.00016602,2]
[354236325,1740357060181,-500.0,0.00016602,2]
[354236326,1740357060190,-2210.73,0.00016602,2]
[354236327,1740357060200,-2941.18,0.00016602,2]
[354236328,1740357060209,-389.45377593,0.00016602,2]
[354236329,1740357060236,-5080.46668507,0.00012101,2]
[354236330,1740357060246,-110.54622407,0.00016602,2]
[354236331,1740357060255,-1040.13,0.00016602,2]
[354236332,1740357060264,-500.0,0.00016602,2]
[354236333,1740357060274,-1296.92,0.00016602,2]
[354236334,1740357060283,-500.0,0.00016602,2]
[354236335,1740357060292,-4561.52,0.00016602,2]
[354236336,1740357060301,-1359.61,0.00016602,2]
[354236337,1740357060310,-2328.05,0.00016602,2]
[354236338,1740357060319,-500.0,0.00016602,2]
[354236339,1740357060329,-525.12,0.00016602,2]
[354236340,1740357060338,-500.0,0.00016602,2]
[354236341,1740357060347,-500.0,0.00016602,2]
[354236342,1740357060357,-688.59,0.00016602,2]
[354236343,1740357060366,-1148.52,0.00016602,2]
[354236344,1740357060376,-449.68876963,0.00016602,2]
[354236345,1740357060803,-498.60495704,0.00016049,2]
[354236346,1740357060814,-134.39504296,0.00016049,2]
[354236347,1740357060823,-505.32338928,0.00016438,2]
[354236348,1740357060833,-500.0,0.00016438,2]
[354236349,1740357060843,-500.0,0.0001652,2]
[354236350,1740357060852,-192.47123037,0.00016602,2]
[354236351,1740357060861,-979.71,0.00016602,2]
[354236352,1740357060871,-1257.93,0.00016602,2]
[354236353,1740357060880,-967.07,0.00016602,2]
[354236354,1740357060889,-151.0,0.00016602,2]
[354236355,1740357060898,-2708.31,0.00016602,2]
[354236356,1740357060908,-151.0,0.00016602,2]
[354236357,1740357060917,-500.0,0.00016602,2]
[354236358,1740357060928,-900.24,0.00016602,2]
[354236359,1740357060937,-897.71,0.00016602,2]
[354236360,1740357060947,-2007.04,0.00016602,2]
[354236361,1740357060956,-500.0,0.00016602,2]
[354236362,1740357060966,-834.9,0.00016602,2]
[354236363,1740357060975,-500.0,0.00016602,2]
[354236364,1740357060984,-500.0,0.00016602,2]
[354236365,1740357060994,-500.0,0.00016602,2]
[354236366,1740357061003,-3125.5,0.00016602,2]
[354236367,1740357061013,-500.0,0.00016602,2]
[354236368,1740357061022,-500.0,0.00016602,2]
[354236369,1740357061031,-2655.6767938,0.00016602,2]
[354236370,1740357061047,-249.8832062,0.00016602,2]
[354236371,1740357061056,-1492.33,0.00016602,2]
[354236372,1740357061065,-500.0,0.00016602,2]
[354236373,1740357061074,-151.0,0.00016602,2]
[354236374,1740357061083,-897.1,0.00016602,2]
[354236375,1740357061092,-720.74,0.00016602,2]
[354236376,1740357061101,-1849.87,0.00016602,2]
[354236377,1740357061111,-1530.13,0.00016602,2]
[354236378,1740357061120,-500.0,0.00016602,2]
[354236379,1740357061129,-1604.30070189,0.00016602,2]
[354236380,1740357061141,-18.31929811,0.00016602,2]
[354236381,1740357061149,-366.18388643,0.00016602,2]
[354236382,1740357061165,-133.81611357,0.00016602,2]
[354236383,1740357061174,-599.71,0.00016602,2]
[354236384,1740357061184,-1096.11,0.00016602,2]
[354236385,1740357061194,-1371.67,0.00016602,2]
[354236386,1740357061203,-2448.94,0.00016602,2]
[354236387,1740357061213,-500.0,0.00016602,2]
[354236388,1740357061222,-501.59,0.00016602,2]
[354236389,1740357061231,-645.23,0.00016602,2]
[354236390,1740357061240,-3259.39,0.00016602,2]
[354236391,1740357061249,-750.51,0.00016602,2]
[354236392,1740357061259,-792.96,0.00016602,2]
[354236393,1740357061268,-1050.0,0.00016602,2]
[354236394,1740357061277,-500.0,0.00016602,2]
[354236395,1740357061287,-1931.23,0.00016602,2]
[354236396,1740357061296,-500.0,0.00016602,2]
[354236397,1740357061305,-500.0,0.00016602,2]
[354236398,1740357061314,-739.19,0.00016602,2]
[354236399,1740357061324,-721.38,0.00016602,2]
[354236400,1740357061333,-1298.4,0.00016602,2]
[354236401,1740357061342,-1020.95,0.00016602,2]
[354236402,1740357061352,-500.0,0.00016602,2]
[354236403,1740357061361,-2986.14,0.00016602,2]
[354236404,1740357061370,-500.0,0.00016602,2]
[354236405,1740357061383,-193.55770364,0.00016602,2]
[354236406,1740357061396,-1850.14229636,0.00016602,2]
[354236407,1740357061405,-1576.4,0.00016602,2]
[354236408,1740357061415,-500.0,0.00016602,2]
[354236409,1740357061424,-3710.85,0.00016602,2]
[354236410,1740357061434,-1176.22,0.00016602,2]